{"text_format":"3","workbook":"xlsx","n_sheets":5,"sheets":["Přehled večírku","Seznam hostů","Jídlo a nápoje","Další nezbytnosti","Mřížka pro naplánování míst"],"not_rendered":{"defined_names":9},"read":"whole","date_system":"1900"}

{"sheet":"Přehled večírku","index":0,"n_rows":21,"n_cols":8,"rows_kept":21,"merged":[[6,3,6,4],[6,5,6,6],[9,1,9,2]]}
[]
[]
[null,"Přehled večírku"]
[]
[]
[null,"UDÁLOST",null,"SOUHRN HOSTŮ",{"$nulls":3},{"$f":"\"NEVYŘÍZENÁ POTVRZENÍ ÚČASTI: \"&NevyřízenáPotvrzeníÚčasti","v":"NEVYŘÍZENÁ POTVRZENÍ ÚČASTI: 2"}]
[null,"Babiččiny 75. narozeniny",null,"PŘEHLED ODPOVĚDÍ",null,"NÁKLADY NA JEDNOHO HOSTA",null,"ČÁSTKA ROZPOČTU"]
[{"$nulls":3},"Hosté, kteří potvrdili účast","Celkem potvrzené","Jídlo","Jiné","Celkem"]
[null,"DATUM",null,"Dospělí",{"$f":"SUMIF(TabulkaHostů[ZÚČASTNÍ SE?],\"=Ano\",TabulkaHostů[DOSPĚLÍ])","v":26},{"$f":"TabulkaPotravin[[#Totals],[NÁKLADY NA DOSPĚLÉHO]]","v":{"v":12.690089084110037,"d":"12.69 Kč"}},{"$f":"ZákladníNákladyNaHosta","v":{"v":18.695652173913043,"d":"18.70 Kč"}},{"$f":"(SouhrnÚčastníků[[#This Row],[Jídlo]]+SouhrnÚčastníků[[#This Row],[Jiné]])*Celkem_dospělí","v":{"v":816.0292727086002,"d":"816.03 Kč"}}]
[null,"14. Června 2011",null,"Děti",{"$f":"SUMIF(TabulkaHostů[ZÚČASTNÍ SE?],\"=Ano\",TabulkaHostů[DĚTI])","v":20},{"$f":"TabulkaPotravin[[#Totals],[NÁKLADY NA DÍTĚ]]","v":{"v":7.252884190656953,"d":"7.25 Kč"}},{"$f":"ZákladníNákladyNaHosta","v":{"v":18.695652173913043,"d":"18.70 Kč"}},{"$f":"(SouhrnÚčastníků[[#This Row],[Jídlo]]+SouhrnÚčastníků[[#This Row],[Jiné]])*Celkem_děti","v":{"v":518.9707272914,"d":"518.97 Kč"}}]
[{"$nulls":3},"Celkem",{"$f":"SUBTOTAL(109,SouhrnÚčastníků[Celkem potvrzené])","v":46},{"$f":"\"Prům.     \"&TEXT(SUBTOTAL(101,SouhrnÚčastníků[Jídlo]),\"# ##0,00 Kč\")","v":"Prům.     9,97 Kč"},{"$f":"\"Prům.    \"&TEXT(SUBTOTAL(101,SouhrnÚčastníků[Jiné]),\"# ##0,00 Kč\")","v":"Prům.    18,70 Kč"},{"$f":"SUBTOTAL(109,SouhrnÚčastníků[Celkem])","v":{"v":1335,"d":"1,335.00 Kč"}}]
[null,"ČAS"]
[null,"14:00–16:00 hodin"]
[]
[null,"MÍSTO",null,"SOUHRN ROZPOČTU"]
[null,"Dům tety Kim",null,"ÚKOL","POČET","ČÁSTKA ROZPOČTU","CELKOVÉ NÁKLADY","ROZDÍL"]
[{"$nulls":3},"Jídlo a pití",{"$f":"COUNTA(TabulkaPotravin[JÍDLO NEBO NÁPOJ])","v":18},{"v":500,"d":"500.00 Kč"},{"$f":"TabulkaPotravin[[#Totals],[CELKOVÉ NÁKLADY]]","v":{"v":475,"d":"475.00 Kč"}},{"$f":"PřehledRozpočtu[[#This Row],[ČÁSTKA ROZPOČTU]]-PřehledRozpočtu[[#This Row],[CELKOVÉ NÁKLADY]]","v":{"v":25,"d":"25.00 Kč"}}]
[{"$nulls":3},{"$f":"Záhlavítabulky1","v":"Vybavení a zásoby"},{"$f":"COUNTA(Tabulka1Rozpočet[Vybavení a zásoby])","v":7},{"v":400,"d":"400.00 Kč"},{"$f":"Tabulka1Rozpočet[[#Totals],[Náklady]]","v":{"v":400,"d":"400.00 Kč"}},{"$f":"PřehledRozpočtu[[#This Row],[ČÁSTKA ROZPOČTU]]-PřehledRozpočtu[[#This Row],[CELKOVÉ NÁKLADY]]","v":{"v":0,"d":"0.00 Kč"}}]
[{"$nulls":3},{"$f":"Záhlavítabulky2","v":"Dekorace"},{"$f":"COUNTA(Tabulka2Rozpočet[Dekorace])","v":4},{"v":150,"d":"150.00 Kč"},{"$f":"Tabulka2Rozpočet[[#Totals],[Náklady]]","v":{"v":175,"d":"175.00 Kč"}},{"$f":"PřehledRozpočtu[[#This Row],[ČÁSTKA ROZPOČTU]]-PřehledRozpočtu[[#This Row],[CELKOVÉ NÁKLADY]]","v":{"v":-25,"d":"-25.00 Kč"}}]
[{"$nulls":3},{"$f":"Záhlavítabulky3","v":"Jiné"},{"$f":"COUNTA(Tabulka3Rozpočet[Jiné])","v":4},{"v":300,"d":"300.00 Kč"},{"$f":"Tabulka3Rozpočet[[#Totals],[Náklady]]","v":{"v":285,"d":"285.00 Kč"}},{"$f":"PřehledRozpočtu[[#This Row],[ČÁSTKA ROZPOČTU]]-PřehledRozpočtu[[#This Row],[CELKOVÉ NÁKLADY]]","v":{"v":15,"d":"15.00 Kč"}}]
[{"$nulls":3},"Celkem",{"$f":"SUBTOTAL(109,PřehledRozpočtu[POČET])","v":33},{"$f":"SUBTOTAL(109,PřehledRozpočtu[ČÁSTKA ROZPOČTU])","v":{"v":1350,"d":"1,350.00 Kč"}},{"$f":"SUBTOTAL(109,PřehledRozpočtu[CELKOVÉ NÁKLADY])","v":{"v":1335,"d":"1,335.00 Kč"}},{"$f":"SUBTOTAL(109,PřehledRozpočtu[ROZDÍL])","v":{"v":15,"d":"15.00 Kč"}}]

{"sheet":"Seznam hostů","index":1,"n_rows":22,"n_cols":12,"rows_kept":22}
[]
[]
[null,"Seznam hostů"]
[]
[]
[]
[null,"JMÉNO","ADRESA","MĚSTO","STÁT","PSČ","TELEFON","E-MAIL","ZÚČASTNÍ SE?","DĚTI","DOSPĚLÍ","CELKEM"]
[null,"Rodina 1","Adresa 1","Město 1","Stát 1","PSČ 1","Telefon 1","E-mail1","Ne",2,2,{"$f":"SUM(TabulkaHostů[[#This Row],[DĚTI]:[DOSPĚLÍ]])","v":4}]
[null,"Rodina 2","Adresa 2","Město 2","Stát 2","PSČ 2","Telefon 2","E-mail2","Ano",1,1,{"$f":"SUM(TabulkaHostů[[#This Row],[DĚTI]:[DOSPĚLÍ]])","v":2}]
[null,"Rodina 3","Adresa 3","Město 3","Stát 3","PSČ 3","Telefon 3","E-mail3","Ano",3,3,{"$f":"SUM(TabulkaHostů[[#This Row],[DĚTI]:[DOSPĚLÍ]])","v":6}]
[null,"Rodina 4","Adresa 4","Město 4","Stát 4","PSČ 4","Telefon 4","E-mail4",null,null,2,{"$f":"SUM(TabulkaHostů[[#This Row],[DĚTI]:[DOSPĚLÍ]])","v":2}]
[null,"Rodina 5","Adresa 5","Město 5","Stát 5","PSČ 5","Telefon 5","E-mail5","Ano",4,3,{"$f":"SUM(TabulkaHostů[[#This Row],[DĚTI]:[DOSPĚLÍ]])","v":7}]
[null,"Rodina 6","Adresa 6","Město 6","Stát 6","PSČ 6","Telefon 6","E-mail6","Ano",2,2,{"$f":"SUM(TabulkaHostů[[#This Row],[DĚTI]:[DOSPĚLÍ]])","v":4}]
[null,"Rodina 7","Adresa 7","Město 7","Stát 7","PSČ 7","Telefon 7","E-mail7","Ano",1,4,{"$f":"SUM(TabulkaHostů[[#This Row],[DĚTI]:[DOSPĚLÍ]])","v":5}]
[null,"Rodina 8","Adresa 8","Město 8","Stát 8","PSČ 8","Telefon 8","E-mail8","Ne",5,3,{"$f":"SUM(TabulkaHostů[[#This Row],[DĚTI]:[DOSPĚLÍ]])","v":8}]
[null,"Rodina 9","Adresa 9","Město 9","Stát 9","PSČ 9","Telefon 9","E-mail9","Ano",3,2,{"$f":"SUM(TabulkaHostů[[#This Row],[DĚTI]:[DOSPĚLÍ]])","v":5}]
[null,"Rodina 10","Adresa 10","Město 10","Stát 10","PSČ 10","Telefon 10","E-mail10","Ano",null,4,{"$f":"SUM(TabulkaHostů[[#This Row],[DĚTI]:[DOSPĚLÍ]])","v":4}]
[null,"Rodina 11","Adresa 11","Město 11","Stát 11","PSČ 11","Telefon 11","E-mail11","Ano",3,5,{"$f":"SUM(TabulkaHostů[[#This Row],[DĚTI]:[DOSPĚLÍ]])","v":8}]
[null,"Rodina 12","Adresa 12","Město 12","Stát 12","PSČ 12","Telefon 12","E-mail12","Ne",2,3,{"$f":"SUM(TabulkaHostů[[#This Row],[DĚTI]:[DOSPĚLÍ]])","v":5}]
[null,"Rodina 13","Adresa 13","Město 13","Stát 13","PSČ 13","Telefon 13","E-mail13","Ano",3,2,{"$f":"SUM(TabulkaHostů[[#This Row],[DĚTI]:[DOSPĚLÍ]])","v":5}]
[null,"Rodina 14","Adresa 14","Město 14","Stát 14","PSČ 14","Telefon 14","E-mail14","Ne",null,1,{"$f":"SUM(TabulkaHostů[[#This Row],[DĚTI]:[DOSPĚLÍ]])","v":1}]
[null,"Rodina 15","Adresa 15","Město 15","Stát 15","PSČ 15","Telefon 15","E-mail15",null,null,2,{"$f":"SUM(TabulkaHostů[[#This Row],[DĚTI]:[DOSPĚLÍ]])","v":2}]

{"sheet":"Jídlo a nápoje","index":2,"n_rows":25,"n_cols":10,"rows_kept":25}
[]
[]
[null,"Jídlo a nápoje"]
[]
[null,"Zadejte náklady a odhadované porce k automatickému výpočtu celkového počtu porcí a nákladů na jednu porci na základě celkové účasti"]
[null,"JÍDLO NEBO NÁPOJ","CELKOVÉ NÁKLADY","PORCE NA DÍTĚ","PORCE NA DOSPĚLÉHO","CELKEM PORCÍ","NÁKLADY NA PORCI","NÁKLADY NA DÍTĚ","NÁKLADY NA DOSPĚLÉHO","POZNÁMKY"]
[null,"Soda",{"v":15,"d":"15.00 Kč"},0.5,2,{"$f":"(TabulkaPotravin[[#This Row],[PORCE NA DÍTĚ]]*Celkem_děti)+(TabulkaPotravin[[#This Row],[PORCE NA DOSPĚLÉHO]]*Celkem_dospělí)","v":62},{"$f":"IFERROR(TabulkaPotravin[[#This Row],[CELKOVÉ NÁKLADY]]/TabulkaPotravin[[#This Row],[CELKEM PORCÍ]],\"\")","v":{"v":0.24193548387096775,"d":"0.24 Kč"}},{"$f":"IFERROR(TabulkaPotravin[[#This Row],[NÁKLADY NA PORCI]]*TabulkaPotravin[[#This Row],[PORCE NA DÍTĚ]],\"\")","v":{"v":0.12096774193548387,"d":"0.12 Kč"}},{"$f":"IFERROR(TabulkaPotravin[[#This Row],[NÁKLADY NA PORCI]]*TabulkaPotravin[[#This Row],[PORCE NA DOSPĚLÉHO]],\"\")","v":{"v":0.4838709677419355,"d":"0.48 Kč"}},"2litrové láhve"]
[null,"Krabice s džusem",{"v":15,"d":"15.00 Kč"},2,0,{"$f":"(TabulkaPotravin[[#This Row],[PORCE NA DÍTĚ]]*Celkem_děti)+(TabulkaPotravin[[#This Row],[PORCE NA DOSPĚLÉHO]]*Celkem_dospělí)","v":40},{"$f":"IFERROR(TabulkaPotravin[[#This Row],[CELKOVÉ NÁKLADY]]/TabulkaPotravin[[#This Row],[CELKEM PORCÍ]],\"\")","v":{"v":0.375,"d":"0.38 Kč"}},{"$f":"IFERROR(TabulkaPotravin[[#This Row],[NÁKLADY NA PORCI]]*TabulkaPotravin[[#This Row],[PORCE NA DÍTĚ]],\"\")","v":{"v":0.75,"d":"0.75 Kč"}},{"$f":"IFERROR(TabulkaPotravin[[#This Row],[NÁKLADY NA PORCI]]*TabulkaPotravin[[#This Row],[PORCE NA DOSPĚLÉHO]],\"\")","v":{"v":0,"d":"0.00 Kč"}},"Jablka a bílé hrozny"]
[null,"Víno",{"v":50,"d":"50.00 Kč"},0,2,{"$f":"(TabulkaPotravin[[#This Row],[PORCE NA DÍTĚ]]*Celkem_děti)+(TabulkaPotravin[[#This Row],[PORCE NA DOSPĚLÉHO]]*Celkem_dospělí)","v":52},{"$f":"IFERROR(TabulkaPotravin[[#This Row],[CELKOVÉ NÁKLADY]]/TabulkaPotravin[[#This Row],[CELKEM PORCÍ]],\"\")","v":{"v":0.9615384615384616,"d":"0.96 Kč"}},{"$f":"IFERROR(TabulkaPotravin[[#This Row],[NÁKLADY NA PORCI]]*TabulkaPotravin[[#This Row],[PORCE NA DÍTĚ]],\"\")","v":{"v":0,"d":"0.00 Kč"}},{"$f":"IFERROR(TabulkaPotravin[[#This Row],[NÁKLADY NA PORCI]]*TabulkaPotravin[[#This Row],[PORCE NA DOSPĚLÉHO]],\"\")","v":{"v":1.9230769230769231,"d":"1.92 Kč"}}]
[null,"Koláč",{"v":75,"d":"75.00 Kč"},1,1,{"$f":"(TabulkaPotravin[[#This Row],[PORCE NA DÍTĚ]]*Celkem_děti)+(TabulkaPotravin[[#This Row],[PORCE NA DOSPĚLÉHO]]*Celkem_dospělí)","v":46},{"$f":"IFERROR(TabulkaPotravin[[#This Row],[CELKOVÉ NÁKLADY]]/TabulkaPotravin[[#This Row],[CELKEM PORCÍ]],\"\")","v":{"v":1.6304347826086956,"d":"1.63 Kč"}},{"$f":"IFERROR(TabulkaPotravin[[#This Row],[NÁKLADY NA PORCI]]*TabulkaPotravin[[#This Row],[PORCE NA DÍTĚ]],\"\")","v":{"v":1.6304347826086956,"d":"1.63 Kč"}},{"$f":"IFERROR(TabulkaPotravin[[#This Row],[NÁKLADY NA PORCI]]*TabulkaPotravin[[#This Row],[PORCE NA DOSPĚLÉHO]],\"\")","v":{"v":1.6304347826086956,"d":"1.63 Kč"}},"Objednávání u místního pekaře"]
[null,"Zmrzlina",{"v":20,"d":"20.00 Kč"},1,1.5,{"$f":"(TabulkaPotravin[[#This Row],[PORCE NA DÍTĚ]]*Celkem_děti)+(TabulkaPotravin[[#This Row],[PORCE NA DOSPĚLÉHO]]*Celkem_dospělí)","v":59},{"$f":"IFERROR(TabulkaPotravin[[#This Row],[CELKOVÉ NÁKLADY]]/TabulkaPotravin[[#This Row],[CELKEM PORCÍ]],\"\")","v":{"v":0.3389830508474576,"d":"0.34 Kč"}},{"$f":"IFERROR(TabulkaPotravin[[#This Row],[NÁKLADY NA PORCI]]*TabulkaPotravin[[#This Row],[PORCE NA DÍTĚ]],\"\")","v":{"v":0.3389830508474576,"d":"0.34 Kč"}},{"$f":"IFERROR(TabulkaPotravin[[#This Row],[NÁKLADY NA PORCI]]*TabulkaPotravin[[#This Row],[PORCE NA DOSPĚLÉHO]],\"\")","v":{"v":0.5084745762711864,"d":"0.51 Kč"}}]
[null,"Misky na pudink",{"v":15,"d":"15.00 Kč"},1,0,{"$f":"(TabulkaPotravin[[#This Row],[PORCE NA DÍTĚ]]*Celkem_děti)+(TabulkaPotravin[[#This Row],[PORCE NA DOSPĚLÉHO]]*Celkem_dospělí)","v":20},{"$f":"IFERROR(TabulkaPotravin[[#This Row],[CELKOVÉ NÁKLADY]]/TabulkaPotravin[[#This Row],[CELKEM PORCÍ]],\"\")","v":{"v":0.75,"d":"0.75 Kč"}},{"$f":"IFERROR(TabulkaPotravin[[#This Row],[NÁKLADY NA PORCI]]*TabulkaPotravin[[#This Row],[PORCE NA DÍTĚ]],\"\")","v":{"v":0.75,"d":"0.75 Kč"}},{"$f":"IFERROR(TabulkaPotravin[[#This Row],[NÁKLADY NA PORCI]]*TabulkaPotravin[[#This Row],[PORCE NA DOSPĚLÉHO]],\"\")","v":{"v":0,"d":"0.00 Kč"}},"Koupit balené kelímky: vanilka a čokoláda"]
[null,"Nadívané žampiony",{"v":32,"d":"32.00 Kč"},1,2,{"$f":"(TabulkaPotravin[[#This Row],[PORCE NA DÍTĚ]]*Celkem_děti)+(TabulkaPotravin[[#This Row],[PORCE NA DOSPĚLÉHO]]*Celkem_dospělí)","v":72},{"$f":"IFERROR(TabulkaPotravin[[#This Row],[CELKOVÉ NÁKLADY]]/TabulkaPotravin[[#This Row],[CELKEM PORCÍ]],\"\")","v":{"v":0.4444444444444444,"d":"0.44 Kč"}},{"$f":"IFERROR(TabulkaPotravin[[#This Row],[NÁKLADY NA PORCI]]*TabulkaPotravin[[#This Row],[PORCE NA DÍTĚ]],\"\")","v":{"v":0.4444444444444444,"d":"0.44 Kč"}},{"$f":"IFERROR(TabulkaPotravin[[#This Row],[NÁKLADY NA PORCI]]*TabulkaPotravin[[#This Row],[PORCE NA DOSPĚLÉHO]],\"\")","v":{"v":0.8888888888888888,"d":"0.89 Kč"}},"Žampionové hlavičky plněné krémovým sýrem a salámem"]
[null,"Bruschetta",{"v":22,"d":"22.00 Kč"},0,3,{"$f":"(TabulkaPotravin[[#This Row],[PORCE NA DÍTĚ]]*Celkem_děti)+(TabulkaPotravin[[#This Row],[PORCE NA DOSPĚLÉHO]]*Celkem_dospělí)","v":78},{"$f":"IFERROR(TabulkaPotravin[[#This Row],[CELKOVÉ NÁKLADY]]/TabulkaPotravin[[#This Row],[CELKEM PORCÍ]],\"\")","v":{"v":0.28205128205128205,"d":"0.28 Kč"}},{"$f":"IFERROR(TabulkaPotravin[[#This Row],[NÁKLADY NA PORCI]]*TabulkaPotravin[[#This Row],[PORCE NA DÍTĚ]],\"\")","v":{"v":0,"d":"0.00 Kč"}},{"$f":"IFERROR(TabulkaPotravin[[#This Row],[NÁKLADY NA PORCI]]*TabulkaPotravin[[#This Row],[PORCE NA DOSPĚLÉHO]],\"\")","v":{"v":0.8461538461538461,"d":"0.85 Kč"}},"Rajčata s bazalkou"]
[null,"Uzený losos",{"v":50,"d":"50.00 Kč"},1,2,{"$f":"(TabulkaPotravin[[#This Row],[PORCE NA DÍTĚ]]*Celkem_děti)+(TabulkaPotravin[[#This Row],[PORCE NA DOSPĚLÉHO]]*Celkem_dospělí)","v":72},{"$f":"IFERROR(TabulkaPotravin[[#This Row],[CELKOVÉ NÁKLADY]]/TabulkaPotravin[[#This Row],[CELKEM PORCÍ]],\"\")","v":{"v":0.6944444444444444,"d":"0.69 Kč"}},{"$f":"IFERROR(TabulkaPotravin[[#This Row],[NÁKLADY NA PORCI]]*TabulkaPotravin[[#This Row],[PORCE NA DÍTĚ]],\"\")","v":{"v":0.6944444444444444,"d":"0.69 Kč"}},{"$f":"IFERROR(TabulkaPotravin[[#This Row],[NÁKLADY NA PORCI]]*TabulkaPotravin[[#This Row],[PORCE NA DOSPĚLÉHO]],\"\")","v":{"v":1.3888888888888888,"d":"1.39 Kč"}}]
[null,"Minibagetky",{"v":20,"d":"20.00 Kč"},1,2,{"$f":"(TabulkaPotravin[[#This Row],[PORCE NA DÍTĚ]]*Celkem_děti)+(TabulkaPotravin[[#This Row],[PORCE NA DOSPĚLÉHO]]*Celkem_dospělí)","v":72},{"$f":"IFERROR(TabulkaPotravin[[#This Row],[CELKOVÉ NÁKLADY]]/TabulkaPotravin[[#This Row],[CELKEM PORCÍ]],\"\")","v":{"v":0.2777777777777778,"d":"0.28 Kč"}},{"$f":"IFERROR(TabulkaPotravin[[#This Row],[NÁKLADY NA PORCI]]*TabulkaPotravin[[#This Row],[PORCE NA DÍTĚ]],\"\")","v":{"v":0.2777777777777778,"d":"0.28 Kč"}},{"$f":"IFERROR(TabulkaPotravin[[#This Row],[NÁKLADY NA PORCI]]*TabulkaPotravin[[#This Row],[PORCE NA DOSPĚLÉHO]],\"\")","v":{"v":0.5555555555555556,"d":"0.56 Kč"}},"4 pytlíky–tříděné"]
[null,"Tavený sýr",{"v":10,"d":"10.00 Kč"},1,2,{"$f":"(TabulkaPotravin[[#This Row],[PORCE NA DÍTĚ]]*Celkem_děti)+(TabulkaPotravin[[#This Row],[PORCE NA DOSPĚLÉHO]]*Celkem_dospělí)","v":72},{"$f":"IFERROR(TabulkaPotravin[[#This Row],[CELKOVÉ NÁKLADY]]/TabulkaPotravin[[#This Row],[CELKEM PORCÍ]],\"\")","v":{"v":0.1388888888888889,"d":"0.14 Kč"}},{"$f":"IFERROR(TabulkaPotravin[[#This Row],[NÁKLADY NA PORCI]]*TabulkaPotravin[[#This Row],[PORCE NA DÍTĚ]],\"\")","v":{"v":0.1388888888888889,"d":"0.14 Kč"}},{"$f":"IFERROR(TabulkaPotravin[[#This Row],[NÁKLADY NA PORCI]]*TabulkaPotravin[[#This Row],[PORCE NA DOSPĚLÉHO]],\"\")","v":{"v":0.2777777777777778,"d":"0.28 Kč"}},"2 velké kelímky"]
[null,"Kapary",{"v":12,"d":"12.00 Kč"},1,2,{"$f":"(TabulkaPotravin[[#This Row],[PORCE NA DÍTĚ]]*Celkem_děti)+(TabulkaPotravin[[#This Row],[PORCE NA DOSPĚLÉHO]]*Celkem_dospělí)","v":72},{"$f":"IFERROR(TabulkaPotravin[[#This Row],[CELKOVÉ NÁKLADY]]/TabulkaPotravin[[#This Row],[CELKEM PORCÍ]],\"\")","v":{"v":0.16666666666666666,"d":"0.17 Kč"}},{"$f":"IFERROR(TabulkaPotravin[[#This Row],[NÁKLADY NA PORCI]]*TabulkaPotravin[[#This Row],[PORCE NA DÍTĚ]],\"\")","v":{"v":0.16666666666666666,"d":"0.17 Kč"}},{"$f":"IFERROR(TabulkaPotravin[[#This Row],[NÁKLADY NA PORCI]]*TabulkaPotravin[[#This Row],[PORCE NA DOSPĚLÉHO]],\"\")","v":{"v":0.3333333333333333,"d":"0.33 Kč"}},"3 sklenice"]
[null,"Kuřecí křidýlka",{"v":45,"d":"45.00 Kč"},2,4,{"$f":"(TabulkaPotravin[[#This Row],[PORCE NA DÍTĚ]]*Celkem_děti)+(TabulkaPotravin[[#This Row],[PORCE NA DOSPĚLÉHO]]*Celkem_dospělí)","v":144},{"$f":"IFERROR(TabulkaPotravin[[#This Row],[CELKOVÉ NÁKLADY]]/TabulkaPotravin[[#This Row],[CELKEM PORCÍ]],\"\")","v":{"v":0.3125,"d":"0.31 Kč"}},{"$f":"IFERROR(TabulkaPotravin[[#This Row],[NÁKLADY NA PORCI]]*TabulkaPotravin[[#This Row],[PORCE NA DÍTĚ]],\"\")","v":{"v":0.625,"d":"0.63 Kč"}},{"$f":"IFERROR(TabulkaPotravin[[#This Row],[NÁKLADY NA PORCI]]*TabulkaPotravin[[#This Row],[PORCE NA DOSPĚLÉHO]],\"\")","v":{"v":1.25,"d":"1.25 Kč"}},"Nákup v místním obchodě s drůbežím masem"]
[null,"Hummus",{"v":10,"d":"10.00 Kč"},4,6,{"$f":"(TabulkaPotravin[[#This Row],[PORCE NA DÍTĚ]]*Celkem_děti)+(TabulkaPotravin[[#This Row],[PORCE NA DOSPĚLÉHO]]*Celkem_dospělí)","v":236},{"$f":"IFERROR(TabulkaPotravin[[#This Row],[CELKOVÉ NÁKLADY]]/TabulkaPotravin[[#This Row],[CELKEM PORCÍ]],\"\")","v":{"v":0.0423728813559322,"d":"0.04 Kč"}},{"$f":"IFERROR(TabulkaPotravin[[#This Row],[NÁKLADY NA PORCI]]*TabulkaPotravin[[#This Row],[PORCE NA DÍTĚ]],\"\")","v":{"v":0.1694915254237288,"d":"0.17 Kč"}},{"$f":"IFERROR(TabulkaPotravin[[#This Row],[NÁKLADY NA PORCI]]*TabulkaPotravin[[#This Row],[PORCE NA DOSPĚLÉHO]],\"\")","v":{"v":0.2542372881355932,"d":"0.25 Kč"}},"Připravené předchozí noc"]
[null,"Parmazánové pita křupky",{"v":14,"d":"14.00 Kč"},4,6,{"$f":"(TabulkaPotravin[[#This Row],[PORCE NA DÍTĚ]]*Celkem_děti)+(TabulkaPotravin[[#This Row],[PORCE NA DOSPĚLÉHO]]*Celkem_dospělí)","v":236},{"$f":"IFERROR(TabulkaPotravin[[#This Row],[CELKOVÉ NÁKLADY]]/TabulkaPotravin[[#This Row],[CELKEM PORCÍ]],\"\")","v":{"v":0.059322033898305086,"d":"0.06 Kč"}},{"$f":"IFERROR(TabulkaPotravin[[#This Row],[NÁKLADY NA PORCI]]*TabulkaPotravin[[#This Row],[PORCE NA DÍTĚ]],\"\")","v":{"v":0.23728813559322035,"d":"0.24 Kč"}},{"$f":"IFERROR(TabulkaPotravin[[#This Row],[NÁKLADY NA PORCI]]*TabulkaPotravin[[#This Row],[PORCE NA DOSPĚLÉHO]],\"\")","v":{"v":0.3559322033898305,"d":"0.36 Kč"}},"Připravené předchozí noc"]
[null,"Různá zelenina",{"v":30,"d":"30.00 Kč"},4,10,{"$f":"(TabulkaPotravin[[#This Row],[PORCE NA DÍTĚ]]*Celkem_děti)+(TabulkaPotravin[[#This Row],[PORCE NA DOSPĚLÉHO]]*Celkem_dospělí)","v":340},{"$f":"IFERROR(TabulkaPotravin[[#This Row],[CELKOVÉ NÁKLADY]]/TabulkaPotravin[[#This Row],[CELKEM PORCÍ]],\"\")","v":{"v":0.08823529411764706,"d":"0.09 Kč"}},{"$f":"IFERROR(TabulkaPotravin[[#This Row],[NÁKLADY NA PORCI]]*TabulkaPotravin[[#This Row],[PORCE NA DÍTĚ]],\"\")","v":{"v":0.35294117647058826,"d":"0.35 Kč"}},{"$f":"IFERROR(TabulkaPotravin[[#This Row],[NÁKLADY NA PORCI]]*TabulkaPotravin[[#This Row],[PORCE NA DOSPĚLÉHO]],\"\")","v":{"v":0.8823529411764707,"d":"0.88 Kč"}},"Kousky mrkve, celer, brokolice, květák, červená a zelená paprika"]
[null,"Sýrové koule",{"v":15,"d":"15.00 Kč"},5,10,{"$f":"(TabulkaPotravin[[#This Row],[PORCE NA DÍTĚ]]*Celkem_děti)+(TabulkaPotravin[[#This Row],[PORCE NA DOSPĚLÉHO]]*Celkem_dospělí)","v":360},{"$f":"IFERROR(TabulkaPotravin[[#This Row],[CELKOVÉ NÁKLADY]]/TabulkaPotravin[[#This Row],[CELKEM PORCÍ]],\"\")","v":{"v":0.041666666666666664,"d":"0.04 Kč"}},{"$f":"IFERROR(TabulkaPotravin[[#This Row],[NÁKLADY NA PORCI]]*TabulkaPotravin[[#This Row],[PORCE NA DÍTĚ]],\"\")","v":{"v":0.20833333333333331,"d":"0.21 Kč"}},{"$f":"IFERROR(TabulkaPotravin[[#This Row],[NÁKLADY NA PORCI]]*TabulkaPotravin[[#This Row],[PORCE NA DOSPĚLÉHO]],\"\")","v":{"v":0.41666666666666663,"d":"0.42 Kč"}},"Různé: tavený sýr, ostrý sýr bez oříšků"]
[null,"Krekry",{"v":25,"d":"25.00 Kč"},5,10,{"$f":"(TabulkaPotravin[[#This Row],[PORCE NA DÍTĚ]]*Celkem_děti)+(TabulkaPotravin[[#This Row],[PORCE NA DOSPĚLÉHO]]*Celkem_dospělí)","v":360},{"$f":"IFERROR(TabulkaPotravin[[#This Row],[CELKOVÉ NÁKLADY]]/TabulkaPotravin[[#This Row],[CELKEM PORCÍ]],\"\")","v":{"v":0.06944444444444445,"d":"0.07 Kč"}},{"$f":"IFERROR(TabulkaPotravin[[#This Row],[NÁKLADY NA PORCI]]*TabulkaPotravin[[#This Row],[PORCE NA DÍTĚ]],\"\")","v":{"v":0.3472222222222222,"d":"0.35 Kč"}},{"$f":"IFERROR(TabulkaPotravin[[#This Row],[NÁKLADY NA PORCI]]*TabulkaPotravin[[#This Row],[PORCE NA DOSPĚLÉHO]],\"\")","v":{"v":0.6944444444444444,"d":"0.69 Kč"}},"Různé"]
[null,"Celkem",{"$f":"SUBTOTAL(109,TabulkaPotravin[CELKOVÉ NÁKLADY])","v":{"v":475,"d":"475.00 Kč"}},{"$f":"SUBTOTAL(109,TabulkaPotravin[PORCE NA DÍTĚ])","v":34.5},{"$f":"SUBTOTAL(109,TabulkaPotravin[PORCE NA DOSPĚLÉHO])","v":65.5},{"$f":"SUBTOTAL(109,TabulkaPotravin[CELKEM PORCÍ])","v":2393},{"$f":"SUBTOTAL(109,TabulkaPotravin[NÁKLADY NA PORCI])","v":{"v":6.915706603622084,"d":"6.92 Kč"}},{"$f":"SUBTOTAL(109,TabulkaPotravin[NÁKLADY NA DÍTĚ])","v":{"v":7.252884190656953,"d":"7.25 Kč"}},{"$f":"SUBTOTAL(109,TabulkaPotravin[NÁKLADY NA DOSPĚLÉHO])","v":{"v":12.690089084110037,"d":"12.69 Kč"}}]

{"sheet":"Další nezbytnosti","index":3,"n_rows":30,"n_cols":5,"rows_kept":30,"merged":[[14,1,14,4],[22,1,22,4]]}
[]
[]
[null,"Další nezbytnosti"]
[]
[]
[null,"Vybavení a zásoby","Náklady","Koupené","Poznámky"]
[null,"Pronájem místnosti/haly",{"v":250,"d":"250.00 Kč"},"Ano"]
[null,"Prostírání",{"v":30,"d":"30.00 Kč"},"Ano","Nájemné"]
[null,"Židle a stoly",{"v":0,"d":"0.00 Kč"},null,"Započítáno do pronájmu sálu"]
[null,"Ubrousky k nápojům",{"v":25,"d":"25.00 Kč"}]
[null,"Ubrousky k jídlu",{"v":20,"d":"20.00 Kč"},null,"Nájemné"]
[null,"Stolní servis",{"v":50,"d":"50.00 Kč"},null,"Nájemné"]
[null,"Sklo",{"v":25,"d":"25.00 Kč"},null,"Nájemné"]
[null,"Celkem",{"$f":"SUBTOTAL(109,Tabulka1Rozpočet[Náklady])","v":{"v":400,"d":"400.00 Kč"}}]
[]
[]
[null,"Dekorace","Náklady","Koupené","Poznámky"]
[null,"Balónky",{"v":25,"d":"25.00 Kč"}]
[null,"Nádrž s héliem",{"v":50,"d":"50.00 Kč"},null,"Nájemné"]
[null,"Ozdoby uprostřed stolu",{"v":100,"d":"100.00 Kč"},"Ano","Celkem 10"]
[null,"Skleněné vázy",{"v":0,"d":"0.00 Kč"},null,"Vypůjčení od Sandy"]
[null,"Celkem",{"$f":"SUBTOTAL(109,Tabulka2Rozpočet[Náklady])","v":{"v":175,"d":"175.00 Kč"}}]
[]
[]
[null,"Jiné","Náklady","Koupené","Poznámky"]
[null,"Pozvánky",{"v":50,"d":"50.00 Kč"},"Ano"]
[null,"Poštovné",{"v":60,"d":"60.00 Kč"},"Ano"]
[null,"Fotograf",{"v":125,"d":"125.00 Kč"},null,"2 hodiny (14–16)"]
[null,"Dárky pro hosty",{"v":50,"d":"50.00 Kč"}]
[null,"Celkem",{"$f":"SUBTOTAL(109,Tabulka3Rozpočet[Náklady])","v":{"v":285,"d":"285.00 Kč"}}]

{"sheet":"Mřížka pro naplánování míst","index":4,"n_rows":43,"n_cols":34,"rows_kept":43,"merged":[[35,0,35,17],[35,19,35,33]]}
["Posazení hostů"]
{"$rows_empty":33}
[{"$nulls":33},"*1 čtverec = cca 1 čtverečný metr"]
["Poznámky",{"$nulls":18},{"$f":"\" Celkem potvrdilo hostů: \"&Potvrzení_hosté","v":" Celkem potvrdilo hostů: 46"}]
[{"$nulls":19},"Můžete použít některé z následujících rozmístění stolů:"]
[{"$nulls":20},{"$f":"ROUNDUP(Potvrzení_hosté/6,0)&\"kulaté 1,4metrové stoly (6 míst)\"","v":"8kulaté 1,4metrové stoly (6 míst)"}]
[{"$nulls":20},{"$f":"ROUNDUP(Potvrzení_hosté/8,0) &\" kulaté 1,5metrové stoly (8 míst)\"","v":"6 kulaté 1,5metrové stoly (8 míst)"}]
[{"$nulls":20},{"$f":"ROUNDUP(Potvrzení_hosté/10,0)&\" kulaté 1,8metrové stoly (10 míst)\"","v":"5 kulaté 1,8metrové stoly (10 míst)"}]
[{"$nulls":20},{"$f":"ROUNDUP(Potvrzení_hosté/6,0)& \"obdélníkové stoly o rozměrech 76 × 180 cm (6 míst)\"","v":"8obdélníkové stoly o rozměrech 76 × 180 cm (6 míst)"}]
[{"$nulls":20},{"$f":"ROUNDUP(Potvrzení_hosté/8,0)&\" obdélníkové stoly o rozměrech 76 × 240 cm (8 míst)\"","v":"6 obdélníkové stoly o rozměrech 76 × 240 cm (8 míst)"}]
[{"$nulls":19},"(Upřednostňovaný prostor mezi stoly: 1 metr)"]